[Event "European Online Club-ch-A 2021"]
[Site "Online"]
[Date "2021.03.27"]
[Round "5.17"]
[White "Valdes Escobar, Alvaro"]
[Black "Durak, Can"]
[Result "1-0"]
[ECO "D36"]
[WhiteElo "2355"]
[BlackElo "2187"]
[Annotator "NA"]
[PlyCount "103"]
[EventDate "2021.03.27"]
[EventType "team-tourn"]
[EventCountry "NET"]
[SourceTitle "playchess.com"]
[Source "ChessBase"]
[SourceQuality "1"]
[TimeControl "900+5"]

1. d4 {[%emt 0:00:00]} d5 {[%emt 0:00:07]} 2. c4 {[%emt 0:00:03]} e6 {[%emt 0:00:02]} 3. Nc3 {[%emt 0:00:04]} Nf6 {[%emt 0:00:03]} 4. cxd5 {[%emt 0:00:02]} exd5 {[%emt 0:00:04]} 5. Bg5 {[%emt 0:00:03]} c6 {[%emt 0:00:02]} 6. e3 {[%emt 0:00:19]} Be7 {[%emt 0:00:08]} 7. Qc2 {[%emt 0:00:23]} Nbd7 {[%emt 0:00:10]} 8. Bd3 {[%emt 0:00:06]} Nh5 {[%emt 0:00:03]} 9. Bxe7 {[%emt 0:00:07]} Qxe7 {[%emt 0:00:03]} 10. Nge2 {[%emt 0:00:14]} Nb6 {[%emt 0:00:05]} 11. O-O {[%emt 0:00:12]} g6 {[%emt 0:00:03]} 12. Rae1 {[%emt 0:00:04]} O-O {[%emt 0:00:02]} 13. Nc1 {[%emt 0:00:05]} Ng7 {[%emt 0:00:03]} 14. f3 {[%emt 0:00:19]} Bf5 {[%emt 0:00:04]} 15. Qf2 {[%emt 0:01:11]} Rad8 {[%emt 0:00:19]} 16. Bxf5 {[%emt 0:01:51]} Nxf5 {[%emt 0:00:04]} 17. Nb3 {[%emt 0:00:02]} Qd6 {[%emt 0:01:50]} 18. Nc5 {[%emt 0:00:22]} Qc7 {[%emt 0:00:20]} 19. Rd1 {[%emt 0:00:56]} Nc4 {[%emt 0:00:10]} 20. Rfe1 {[%emt 0:00:09]} b6 {[%emt 0:00:14]} 21. Nb3 {[%emt 0:00:06]} Nfxe3 {[%emt 0:01:03]} 22. Rxe3 {[%emt 0:00:05]} Nxe3 {[%emt 0:00:01]} 23. Qxe3 {[%emt 0:00:02]} Rfe8 {[%emt 0:00:02]} 24. Qf2 {[%emt 0:00:31]} Re6 {[%emt 0:00:18]} 25. Re1 {[%emt 0:00:37]} Rde8 {[%emt 0:00:03]} 26. Rxe6 {[%emt 0:00:05]} Rxe6 {[%emt 0:00:02]} 27. Nc1 {[%emt 0:01:16]} Qe7 {[%emt 0:00:22]} 28. Nd3 {[%emt 0:00:55]} Qg5 {[%emt 0:00:27]} 29. f4 {[%emt 0:00:29]} Qe7 {[%emt 0:00:46]} 30. h3 {[%emt 0:00:18]} b5 {[%emt 0:01:04]} 31. a3 {[%emt 0:00:53]} a5 {[%emt 0:00:09]} 32. Kf1 {[%emt 0:02:21]} b4 {[%emt 0:00:38]} 33. axb4 {[%emt 0:00:03]} axb4 {[%emt 0:00:01]} 34. Ne2 {[%emt 0:00:08]} Qa7 {[%emt 0:01:55]} 35. Qe1 {[%emt 0:01:50]} Qe7 {[%emt 0:01:28]} 36. Qd2 {[%emt 0:00:10]} Re4 {[%emt 0:00:32]} 37. Nc5 {[%emt 0:00:29]} Re3 {[%emt 0:00:07]} 38. Kf2 {[%emt 0:00:04]} Re4 {[%emt 0:03:09]} 39. Nxe4 {[%emt 0:00:07]} Qxe4 {[%emt 0:00:03]} 40. Qxb4 {[%emt 0:00:10]} g5 {[%emt 0:00:07]} 41. Qb8+ {[%emt 0:00:04]} Kg7 {[%emt 0:00:06]} 42. Qe5+ {[%emt 0:00:03]} Qxe5 {[%emt 0:00:03]} 43. fxe5 {[%emt 0:00:02]} Kg6 {[%emt 0:00:01]} 44. g4 {[%emt 0:00:02]} h5 {[%emt 0:00:02]} 45. Ng3 {[%emt 0:00:04]} hxg4 {[%emt 0:00:02]} 46. hxg4 {[%emt 0:00:01]} f6 {[%emt 0:00:02]} 47. e6 {[%emt 0:00:06]} Kg7 {[%emt 0:00:03]} 48. Nf5+ {[%emt 0:00:02]} Kf8 {[%emt 0:00:02]} 49. Ke3 {[%emt 0:00:02]} Ke8 {[%emt 0:00:02]} 50. Kd3 {[%emt 0:00:01]} Kf8 {[%emt 0:00:02]} 51. Kc3 {[%emt 0:00:02]} Ke8 {[%emt 0:00:01]} 52. Kb4 {[%emt 0:00:02]} 1-0

[Event "European Online Club-ch-A 2021"]
[Site "Online"]
[Date "2021.03.27"]
[Round "5.18"]
[White "Gurel, Ediz"]
[Black "Fitzsimons, David"]
[Result "1/2-1/2"]
[ECO "B02"]
[WhiteElo "2168"]
[BlackElo "2324"]
[Annotator "NA"]
[PlyCount "110"]
[EventDate "2021.03.27"]
[EventType "team-tourn"]
[EventCountry "NET"]
[SourceTitle "playchess.com"]
[Source "ChessBase"]
[SourceQuality "1"]
[TimeControl "900+5"]

1. e4 {[%emt 0:00:00]} Nf6 {[%emt 0:00:03]} 2. Nc3 {[%emt 0:00:10]} d5 {[%emt 0:00:02]} 3. exd5 {[%emt 0:00:02]} Nxd5 {[%emt 0:00:02]} 4. Bc4 {[%emt 0:00:01]} Nb6 {[%emt 0:00:01]} 5. Bb3 {[%emt 0:00:02]} Nc6 {[%emt 0:00:02]} 6. Nge2 {[%emt 0:00:11]} Bf5 {[%emt 0:00:23]} 7. O-O {[%emt 0:00:08]} e6 {[%emt 0:00:03]} 8. d4 {[%emt 0:00:48]} Be7 {[%emt 0:00:03]} 9. Be3 {[%emt 0:00:08]} O-O {[%emt 0:00:05]} 10. Ng3 {[%emt 0:00:15]} Bg6 {[%emt 0:00:03]} 11. Nce2 {[%emt 0:00:17]} Na5 {[%emt 0:00:46]} 12. Nf4 {[%emt 0:00:48]} Nxb3 {[%emt 0:00:03]} 13. axb3 {[%emt 0:00:03]} Nd5 {[%emt 0:00:06]} 14. Nxg6 {[%emt 0:00:08]} hxg6 {[%emt 0:00:03]} 15. c4 {[%emt 0:00:48]} Nxe3 {[%emt 0:00:20]} 16. fxe3 {[%emt 0:00:01]} c5 {[%emt 0:00:50]} 17. Qd3 {[%emt 0:01:25]} Qb6 {[%emt 0:01:03]} 18. Rad1 {[%emt 0:00:54]} Rad8 {[%emt 0:00:06]} 19. Kh1 {[%emt 0:00:33]} Rd7 {[%emt 0:01:47]} 20. dxc5 {[%emt 0:02:49]} Rxd3 {[%emt 0:00:04]} 21. cxb6 {[%emt 0:00:02]} Rxd1 {[%emt 0:00:01]} 22. Rxd1 {[%emt 0:00:01]} axb6 {[%emt 0:00:02]} 23. Kg1 {[%emt 0:02:28]} Ra8 {[%emt 0:00:31]} 24. Ne4 {[%emt 0:00:57]} f5 {[%emt 0:00:43]} 25. Rd7 {[%emt 0:00:49]} Kf8 {[%emt 0:01:42]} 26. Nc3 {[%emt 0:01:00]} Bc5 {[%emt 0:00:07]} 27. Rxb7 {[%emt 0:00:14]} Bxe3+ {[%emt 0:01:21]} 28. Kf1 {[%emt 0:00:03]} Ra1+ {[%emt 0:00:21]} 29. Ke2 {[%emt 0:00:02]} Bd4 {[%emt 0:00:01]} 30. Nb5 {[%emt 0:00:28]} Bg1 {[%emt 0:02:25]} 31. Nc7 {[%emt 0:00:45]} Ke7 {[%emt 0:00:18]} 32. Nd5+ {[%emt 0:00:14]} Kd6 {[%emt 0:00:03]} 33. Nc3 {[%emt 0:00:02]} Ke5 {[%emt 0:01:03]} 34. Rxg7 {[%emt 0:00:08]} Kf6 {[%emt 0:00:25]} 35. Rb7 {[%emt 0:00:03]} g5 {[%emt 0:00:11]} 36. h3 {[%emt 0:00:14]} Bd4 {[%emt 0:00:11]} 37. Nb5 {[%emt 0:00:21]} Bc5 {[%emt 0:00:06]} 38. b4 {[%emt 0:00:14]} Bxb4 {[%emt 0:00:14]} 39. Rxb6 {[%emt 0:00:01]} Rb1 {[%emt 0:00:02]} 40. Nd4 {[%emt 0:00:11]} Bc5 {[%emt 0:00:24]} 41. Rxe6+ {[%emt 0:00:02]} Kf7 {[%emt 0:00:02]} 42. Re5 {[%emt 0:00:12]} Bxd4 {[%emt 0:00:02]} 43. Rxf5+ {[%emt 0:00:03]} Kg6 {[%emt 0:00:02]} 44. Rb5 {[%emt 0:00:08]} Rxb2+ {[%emt 0:00:48]} 45. Rxb2 {[%emt 0:00:02]} Bxb2 {[%emt 0:00:02]} 46. g4 {[%emt 0:00:07]} Kf6 {[%emt 0:00:05]} 47. Kf3 {[%emt 0:00:03]} Ke5 {[%emt 0:00:02]} 48. h4 {[%emt 0:00:03]} gxh4 {[%emt 0:00:03]} 49. Kg2 {[%emt 0:00:02]} Kf4 {[%emt 0:00:03]} 50. c5 {[%emt 0:00:01]} Kxg4 {[%emt 0:00:04]} 51. c6 {[%emt 0:00:01]} Be5 {[%emt 0:00:02]} 52. c7 {[%emt 0:00:01]} Bxc7 {[%emt 0:00:02]} 53. Kh1 {[%emt 0:00:01]} Kh3 {[%emt 0:00:01]} 54. Kg1 {[%emt 0:00:02]} Bb6+ {[%emt 0:00:02]} 55. Kh1 {[%emt 0:00:01]} Kg3 {[%emt 0:00:01]} 1/2-1/2

[Event "European Online Club-ch-A 2021"]
[Site "Online"]
[Date "2021.03.27"]
[Round "5.19"]
[White "Pein, Malcolm"]
[Black "Emir, Doruk"]
[Result "0-1"]
[ECO "E97"]
[WhiteElo "2309"]
[BlackElo "1852"]
[Annotator "NA"]
[PlyCount "76"]
[EventDate "2021.03.27"]
[EventType "team-tourn"]
[EventCountry "NET"]
[SourceTitle "playchess.com"]
[Source "ChessBase"]
[SourceQuality "1"]
[TimeControl "900+5"]

1. d4 {[%emt 0:00:00]} Nf6 {[%emt 0:00:15]} 2. c4 {[%emt 0:00:04]} g6 {[%emt 0:00:02]} 3. Nc3 {[%emt 0:00:07]} Bg7 {[%emt 0:00:01]} 4. e4 {[%emt 0:00:37]} d6 {[%emt 0:00:07]} 5. Nf3 {[%emt 0:00:09]} O-O {[%emt 0:00:05]} 6. Be2 {[%emt 0:00:01]} e5 {[%emt 0:00:02]} 7. O-O {[%emt 0:00:03]} Nc6 {[%emt 0:00:04]} 8. d5 {[%emt 0:00:02]} Ne7 {[%emt 0:00:04]} 9. b4 {[%emt 0:00:02]} Ne8 {[%emt 0:01:32]} 10. c5 {[%emt 0:00:06]} f5 {[%emt 0:00:08]} 11. a4 {[%emt 0:00:03]} f4 {[%emt 0:00:14]} 12. Ba3 {[%emt 0:00:21]} h6 {[%emt 0:00:20]} 13. b5 {[%emt 0:00:04]} g5 {[%emt 0:00:12]} 14. Nd2 {[%emt 0:00:06]} dxc5 {[%emt 0:01:43]} 15. Bxc5 {[%emt 0:00:07]} Nd6 {[%emt 0:01:23]} 16. Bg4 {[%emt 0:00:52]} Ng6 {[%emt 0:01:03]} 17. Bxc8 {[%emt 0:01:36]} Qxc8 {[%emt 0:00:10]} 18. a5 {[%emt 0:00:25]} g4 {[%emt 0:01:25]} 19. b6 {[%emt 0:01:59]} axb6 {[%emt 0:03:52]} 20. axb6 {[%emt 0:00:06]} Rxa1 {[%emt 0:00:02]} 21. Qxa1 {[%emt 0:00:07]} f3 {[%emt 0:00:31]} 22. g3 {[%emt 0:00:14]} Nf4 {[%emt 0:01:03]} 23. bxc7 {[%emt 0:01:17]} Nh3+ {[%emt 0:00:29]} 24. Kh1 {[%emt 0:00:03]} Qxc7 {[%emt 0:00:03]} 25. Qa3 {[%emt 0:00:24]} Rc8 {[%emt 0:00:08]} 26. Nb3 {[%emt 0:02:54]} Bf8 {[%emt 0:00:30]} 27. Qb4 {[%emt 0:01:02]} b6 {[%emt 0:00:14]} 28. Bxd6 {[%emt 0:01:26]} Bxd6 {[%emt 0:00:15]} 29. Qb5 {[%emt 0:00:02]} Qxc3 {[%emt 0:00:35]} 30. Qd7 {[%emt 0:00:03]} Nxf2+ {[%emt 0:00:14]} 31. Kg1 {[%emt 0:00:08]} Nh3+ {[%emt 0:00:02]} 32. Kh1 {[%emt 0:00:02]} Bf8 {[%emt 0:00:06]} 33. Qxg4+ {[%emt 0:00:18]} Ng5 {[%emt 0:00:13]} 34. h4 {[%emt 0:00:06]} Qd3 {[%emt 0:00:13]} 35. Nd2 {[%emt 0:00:08]} Qe2 {[%emt 0:00:07]} 36. Rxf3 {[%emt 0:00:16]} Rc1+ {[%emt 0:00:04]} 37. Rf1 {[%emt 0:00:03]} Rxf1+ {[%emt 0:00:02]} 38. Nxf1 {[%emt 0:00:03]} Qxg4 {[%emt 0:00:02]} 0-1

[Event "European Online Club-ch-A 2021"]
[Site "Online"]
[Date "2021.03.27"]
[Round "5.20"]
[White "Tinmaz, Kerem"]
[Black "De Verdier, Michael"]
[Result "0-1"]
[ECO "B03"]
[WhiteElo "1614"]
[BlackElo "2291"]
[Annotator "NA"]
[PlyCount "110"]
[EventDate "2021.03.27"]
[EventType "team-tourn"]
[EventCountry "NET"]
[SourceTitle "playchess.com"]
[Source "ChessBase"]
[SourceQuality "1"]
[TimeControl "900+5"]

1. e4 {[%emt 0:00:00]} Nf6 {[%emt 0:00:04]} 2. e5 {[%emt 0:00:08]} Nd5 {[%emt 0:00:02]} 3. c4 {[%emt 0:00:02]} Nb6 {[%emt 0:00:02]} 4. d4 {[%emt 0:00:01]} d6 {[%emt 0:00:01]} 5. f4 {[%emt 0:00:01]} dxe5 {[%emt 0:00:39]} 6. fxe5 {[%emt 0:00:03]} c5 {[%emt 0:00:01]} 7. d5 {[%emt 0:00:12]} g6 {[%emt 0:00:24]} 8. Nf3 {[%emt 0:01:15]} Bg7 {[%emt 0:00:04]} 9. Bf4 {[%emt 0:00:36]} O-O {[%emt 0:00:23]} 10. Nc3 {[%emt 0:00:18]} Bg4 {[%emt 0:00:50]} 11. h3 {[%emt 0:00:42]} Bxf3 {[%emt 0:00:04]} 12. Qxf3 {[%emt 0:00:07]} N8d7 {[%emt 0:01:47]} 13. Qe3 {[%emt 0:00:54]} Qb8 {[%emt 0:02:00]} 14. e6 {[%emt 0:02:44]} Ne5 {[%emt 0:00:14]} 15. Be2 {[%emt 0:04:51]} Nexc4 {[%emt 0:01:45]} 16. Qe4 {[%emt 0:00:54]} Nd6 {[%emt 0:01:17]} 17. Bxd6 {[%emt 0:00:39]} Qxd6 {[%emt 0:00:00]} 18. O-O {[%emt 0:00:53]} f5 {[%emt 0:00:43]} 19. Qd3 {[%emt 0:00:26]} Rad8 {[%emt 0:00:36]} 20. Bf3 {[%emt 0:00:10]} c4 {[%emt 0:00:43]} 21. Qd2 {[%emt 0:00:17]} Qc5+ {[%emt 0:00:26]} 22. Kh1 {[%emt 0:00:07]} Rd6 {[%emt 0:02:19]} 23. Rad1 {[%emt 0:00:21]} Rfd8 {[%emt 0:00:10]} 24. Qf4 {[%emt 0:00:25]} Bxc3 {[%emt 0:01:04]} 25. bxc3 {[%emt 0:00:02]} Nxd5 {[%emt 0:00:02]} 26. Qe5 {[%emt 0:00:16]} b6 {[%emt 0:00:01]} 27. g4 {[%emt 0:00:27]} Ne3 {[%emt 0:00:25]} 28. Qxc5 {[%emt 0:00:12]} bxc5 {[%emt 0:00:00]} 29. Rxd6 {[%emt 0:00:04]} Rxd6 {[%emt 0:00:00]} 30. Re1 {[%emt 0:00:09]} f4 {[%emt 0:00:04]} 31. a4 {[%emt 0:00:05]} Kg7 {[%emt 0:00:10]} 32. Rb1 {[%emt 0:00:05]} Rb6 {[%emt 0:00:04]} 33. Rc1 {[%emt 0:00:10]} Kf6 {[%emt 0:00:04]} 34. Kg1 {[%emt 0:00:05]} Kxe6 {[%emt 0:00:04]} 35. a5 {[%emt 0:00:02]} Rb2 {[%emt 0:00:05]} 36. a6 {[%emt 0:00:07]} Kd6 {[%emt 0:00:19]} 37. h4 {[%emt 0:00:05]} e5 {[%emt 0:00:03]} 38. h5 {[%emt 0:00:03]} Rb6 {[%emt 0:00:20]} 39. hxg6 {[%emt 0:00:04]} hxg6 {[%emt 0:00:02]} 40. Ra1 {[%emt 0:00:02]} Rb3 {[%emt 0:00:08]} 41. g5 {[%emt 0:00:06]} Rxc3 {[%emt 0:00:06]} 42. Be4 {[%emt 0:00:01]} Nf5 {[%emt 0:00:16]} 43. Rd1+ {[%emt 0:00:03]} Nd4 {[%emt 0:00:01]} 44. Kf2 {[%emt 0:00:12]} Rg3 {[%emt 0:00:28]} 45. Rb1 {[%emt 0:00:06]} Nb3 {[%emt 0:00:08]} 46. Rd1+ {[%emt 0:00:02]} Kc7 {[%emt 0:00:03]} 47. Bxg6 {[%emt 0:00:09]} Rxg5 {[%emt 0:00:02]} 48. Be4 {[%emt 0:00:02]} Rg3 {[%emt 0:00:01]} 49. Rd5 {[%emt 0:00:03]} Re3 {[%emt 0:00:07]} 50. Bh7 {[%emt 0:00:12]} Kb6 {[%emt 0:00:06]} 51. Rd6+ {[%emt 0:00:02]} Kb5 {[%emt 0:00:02]} 52. Bf5 {[%emt 0:00:07]} Nd4 {[%emt 0:00:08]} 53. Bc8 {[%emt 0:00:08]} c3 {[%emt 0:00:06]} 54. Bd7+ {[%emt 0:00:02]} Ka5 {[%emt 0:00:03]} 55. Rd5 {[%emt 0:00:04]} Kb4 {[%emt 0:00:01]} 0-1

[Event "European Online Club-ch-A 2021"]
[Site "Online"]
[Date "2021.03.27"]
[Round "6.1"]
[White "Horvath, Laszlo"]
[Black "Celik, Hasan Huseyin"]
[Result "0-1"]
[ECO "C01"]
[WhiteElo "2183"]
[BlackElo "2173"]
[Annotator "NA"]
[PlyCount "148"]
[EventDate "2021.03.27"]
[EventType "team-tourn"]
[EventCountry "NET"]
[SourceTitle "playchess.com"]
[Source "ChessBase"]
[SourceQuality "1"]
[TimeControl "900+5"]

1. e4 {[%emt 0:00:00]} e6 {[%emt 0:00:03]} 2. d4 {[%emt 0:00:02]} d5 {[%emt 0:00:01]} 3. exd5 {[%emt 0:00:02]} exd5 {[%emt 0:00:02]} 4. Nf3 {[%emt 0:00:02]} Bd6 {[%emt 0:00:01]} 5. Bd3 {[%emt 0:00:03]} Ne7 {[%emt 0:00:02]} 6. O-O {[%emt 0:00:03]} Nbc6 {[%emt 0:00:02]} 7. c3 {[%emt 0:00:02]} Bg4 {[%emt 0:00:05]} 8. Bg5 {[%emt 0:00:05]} f6 {[%emt 0:00:02]} 9. Bh4 {[%emt 0:00:02]} Qd7 {[%emt 0:00:01]} 10. Nbd2 {[%emt 0:00:04]} g5 {[%emt 0:00:03]} 11. Bg3 {[%emt 0:00:02]} Bxg3 {[%emt 0:00:01]} 12. hxg3 {[%emt 0:00:05]} O-O-O {[%emt 0:00:02]} 13. b4 {[%emt 0:00:05]} Ng6 {[%emt 0:00:13]} 14. Qa4 {[%emt 0:00:34]} Kb8 {[%emt 0:00:03]} 15. Bb5 {[%emt 0:00:07]} Nge7 {[%emt 0:00:35]} 16. Rfe1 {[%emt 0:01:29]} Rde8 {[%emt 0:01:25]} 17. Rab1 {[%emt 0:00:27]} h5 {[%emt 0:00:18]} 18. c4 {[%emt 0:05:53]} dxc4 {[%emt 0:03:44]} 19. Ne4 {[%emt 0:02:41]} Rhf8 {[%emt 0:06:03]} 20. Bxc4 {[%emt 0:01:25]} Nxd4 {[%emt 0:00:31]} 21. Qxd7 {[%emt 0:00:03]} Nxf3+ {[%emt 0:00:02]} 22. gxf3 {[%emt 0:00:05]} Bxd7 {[%emt 0:00:02]} 23. Nc5 {[%emt 0:00:02]} Bc8 {[%emt 0:00:06]} 24. Bb5 {[%emt 0:00:37]} c6 {[%emt 0:00:04]} 25. Bd3 {[%emt 0:00:06]} Nf5 {[%emt 0:00:17]} 26. Rxe8 {[%emt 0:00:15]} Rxe8 {[%emt 0:00:03]} 27. b5 {[%emt 0:00:01]} Kc7 {[%emt 0:01:27]} 28. bxc6 {[%emt 0:00:19]} bxc6 {[%emt 0:00:04]} 29. Na6+ {[%emt 0:00:31]} Bxa6 {[%emt 0:00:06]} 30. Bxa6 {[%emt 0:00:02]} Nd6 {[%emt 0:00:03]} 31. Bd3 {[%emt 0:00:06]} Re5 {[%emt 0:00:17]} 32. Kg2 {[%emt 0:00:02]} c5 {[%emt 0:00:07]} 33. Rc1 {[%emt 0:00:13]} Kc6 {[%emt 0:00:04]} 34. Bg6 {[%emt 0:00:03]} h4 {[%emt 0:00:09]} 35. gxh4 {[%emt 0:00:03]} gxh4 {[%emt 0:00:02]} 36. f4 {[%emt 0:00:01]} Re2 {[%emt 0:00:06]} 37. a3 {[%emt 0:00:14]} f5 {[%emt 0:00:07]} 38. Rc3 {[%emt 0:00:05]} c4 {[%emt 0:00:23]} 39. Bh5 {[%emt 0:00:03]} Rxf2+ {[%emt 0:00:03]} 40. Kxf2 {[%emt 0:00:13]} Ne4+ {[%emt 0:00:02]} 41. Ke3 {[%emt 0:00:02]} Nxc3 {[%emt 0:00:01]} 42. Kd4 {[%emt 0:00:02]} Nb5+ {[%emt 0:00:10]} 43. Kxc4 {[%emt 0:00:02]} Nxa3+ {[%emt 0:00:02]} 44. Kb4 {[%emt 0:00:02]} Nc2+ {[%emt 0:00:02]} 45. Kc3 {[%emt 0:00:05]} Ne3 {[%emt 0:00:17]} 46. Kd4 {[%emt 0:00:08]} Ng4 {[%emt 0:00:05]} 47. Bg6 {[%emt 0:00:02]} Nh6 {[%emt 0:00:04]} 48. Ke3 {[%emt 0:00:09]} a5 {[%emt 0:00:02]} 49. Kf3 {[%emt 0:00:05]} Kc5 {[%emt 0:00:07]} 50. Be8 {[%emt 0:00:03]} Kd4 {[%emt 0:00:18]} 51. Bc6 {[%emt 0:00:06]} Ng8 {[%emt 0:00:03]} 52. Kg2 {[%emt 0:00:35]} Ke3 {[%emt 0:00:05]} 53. Kh3 {[%emt 0:00:03]} Ne7 {[%emt 0:00:02]} 54. Bd7 {[%emt 0:00:04]} Kxf4 {[%emt 0:00:04]} 55. Kxh4 {[%emt 0:00:02]} Ke3 {[%emt 0:00:03]} 56. Kh3 {[%emt 0:00:02]} f4 {[%emt 0:00:01]} 57. Kg2 {[%emt 0:00:06]} f3+ {[%emt 0:00:02]} 58. Kf1 {[%emt 0:00:02]} f2 {[%emt 0:00:01]} 59. Bb5 {[%emt 0:00:06]} Nf5 {[%emt 0:00:04]} 60. Kg2 {[%emt 0:00:04]} Nd4 {[%emt 0:00:03]} 61. Ba4 {[%emt 0:00:01]} Nf3 {[%emt 0:00:05]} 62. Bb5 {[%emt 0:00:07]} Nd2 {[%emt 0:00:02]} 63. Kg3 {[%emt 0:00:10]} f1=Q {[%emt 0:00:04]} 64. Bxf1 {[%emt 0:00:02]} Nxf1+ {[%emt 0:00:02]} 65. Kg4 {[%emt 0:00:01]} a4 {[%emt 0:00:01]} 66. Kg5 {[%emt 0:00:01]} a3 {[%emt 0:00:01]} 67. Kh6 {[%emt 0:00:01]} a2 {[%emt 0:00:01]} 68. Kh7 {[%emt 0:00:01]} a1=Q {[%emt 0:00:03]} 69. Kg8 {[%emt 0:00:01]} Ng3 {[%emt 0:00:02]} 70. Kh7 {[%emt 0:00:07]} Nf5 {[%emt 0:00:01]} 71. Kg6 {[%emt 0:00:02]} Kf4 {[%emt 0:00:02]} 72. Kh5 {[%emt 0:00:03]} Qh8+ {[%emt 0:00:04]} 73. Kg6 {[%emt 0:00:02]} Qg7+ {[%emt 0:00:01]} 74. Kh5 {[%emt 0:00:02]} Qh6# {[%emt 0:00:02]} 0-1

[Event "European Online Club-ch-A 2021"]
[Site "Online"]
[Date "2021.03.27"]
[Round "6.2"]
[White "Durak, Can"]
[Black "Krieger, Markus"]
[Result "1-0"]
[ECO "E21"]
[WhiteElo "2187"]
[BlackElo "2050"]
[Annotator "NA"]
[PlyCount "69"]
[EventDate "2021.03.27"]
[EventType "team-tourn"]
[EventCountry "NET"]
[SourceTitle "playchess.com"]
[Source "ChessBase"]
[SourceQuality "1"]
[TimeControl "900+5"]

1. d4 {[%emt 0:00:00]} Nf6 {[%emt 0:00:03]} 2. c4 {[%emt 0:00:03]} e6 {[%emt 0:00:01]} 3. Nc3 {[%emt 0:00:03]} Bb4 {[%emt 0:00:02]} 4. e3 {[%emt 0:00:01]} b6 {[%emt 0:00:07]} 5. Bd2 {[%emt 0:00:02]} Bb7 {[%emt 0:00:05]} 6. Nf3 {[%emt 0:00:04]} O-O {[%emt 0:00:09]} 7. Rc1 {[%emt 0:00:04]} c5 {[%emt 0:00:23]} 8. a3 {[%emt 0:00:15]} Bxc3 {[%emt 0:00:02]} 9. Bxc3 {[%emt 0:00:02]} Ne4 {[%emt 0:00:08]} 10. Be2 {[%emt 0:00:16]} d6 {[%emt 0:00:53]} 11. O-O {[%emt 0:00:04]} Nxc3 {[%emt 0:00:01]} 12. Rxc3 {[%emt 0:00:04]} Qe7 {[%emt 0:00:13]} 13. Qd2 {[%emt 0:00:16]} Nd7 {[%emt 0:00:10]} 14. Rd1 {[%emt 0:00:05]} Nf6 {[%emt 0:00:18]} 15. Qc2 {[%emt 0:00:27]} Rfd8 {[%emt 0:00:10]} 16. Qa4 {[%emt 0:00:19]} Ne4 {[%emt 0:00:43]} 17. Rcd3 {[%emt 0:00:03]} Ng5 {[%emt 0:00:20]} 18. Nxg5 {[%emt 0:00:48]} Qxg5 {[%emt 0:00:00]} 19. Bf1 {[%emt 0:00:01]} Be4 {[%emt 0:00:31]} 20. R3d2 {[%emt 0:00:04]} Bf3 {[%emt 0:00:19]} 21. Re1 {[%emt 0:00:27]} a5 {[%emt 0:00:21]} 22. Qb5 {[%emt 0:00:21]} h5 {[%emt 0:01:50]} 23. Qxb6 {[%emt 0:00:29]} Rab8 {[%emt 0:01:10]} 24. Qxa5 {[%emt 0:00:21]} h4 {[%emt 0:00:21]} 25. h3 {[%emt 0:00:12]} Be4 {[%emt 0:00:34]} 26. Qc3 {[%emt 0:01:28]} f5 {[%emt 0:01:02]} 27. dxc5 {[%emt 0:00:31]} dxc5 {[%emt 0:00:06]} 28. Red1 {[%emt 0:00:04]} Rxd2 {[%emt 0:00:14]} 29. Rxd2 {[%emt 0:00:04]} Rf8 {[%emt 0:00:50]} 30. Qe5 {[%emt 0:00:05]} Qg6 {[%emt 0:00:17]} 31. Rd6 {[%emt 0:00:55]} Rf6 {[%emt 0:00:48]} 32. Rd8+ {[%emt 0:00:11]} Kh7 {[%emt 0:00:03]} 33. Qb8 {[%emt 0:00:03]} Qf7 {[%emt 0:00:28]} 34. Rh8+ {[%emt 0:00:26]} Kg6 {[%emt 0:00:02]} 35. Be2 {[%emt 0:00:10]} 1-0

[Event "European Online Club-ch-A 2021"]
[Site "Online"]
[Date "2021.03.27"]
[Round "6.3"]
[White "Frick, Renato"]
[Black "Gurel, Ediz"]
[Result "0-1"]
[ECO "B85"]
[WhiteElo "1947"]
[BlackElo "2168"]
[Annotator "NA"]
[PlyCount "50"]
[EventDate "2021.03.27"]
[EventType "team-tourn"]
[EventCountry "NET"]
[SourceTitle "playchess.com"]
[Source "ChessBase"]
[SourceQuality "1"]
[TimeControl "900+5"]

1. e4 {[%emt 0:00:00]} c5 {[%emt 0:00:03]} 2. Nf3 {[%emt 0:00:03]} e6 {[%emt 0:00:02]} 3. d4 {[%emt 0:00:03]} cxd4 {[%emt 0:00:01]} 4. Nxd4 {[%emt 0:00:01]} Nc6 {[%emt 0:00:01]} 5. Nc3 {[%emt 0:00:09]} Qc7 {[%emt 0:00:02]} 6. Be3 {[%emt 0:00:32]} a6 {[%emt 0:00:02]} 7. Be2 {[%emt 0:00:23]} Nf6 {[%emt 0:00:15]} 8. O-O {[%emt 0:00:19]} Be7 {[%emt 0:00:06]} 9. Kh1 {[%emt 0:00:25]} O-O {[%emt 0:00:08]} 10. f4 {[%emt 0:00:04]} d6 {[%emt 0:00:02]} 11. g4 {[%emt 0:01:35]} Nxd4 {[%emt 0:00:38]} 12. Bxd4 {[%emt 0:00:19]} e5 {[%emt 0:00:02]} 13. Be3 {[%emt 0:00:05]} exf4 {[%emt 0:00:06]} 14. Rxf4 {[%emt 0:00:19]} Be6 {[%emt 0:00:54]} 15. Qd2 {[%emt 0:03:38]} Nd7 {[%emt 0:00:53]} 16. Raf1 {[%emt 0:00:35]} Bg5 {[%emt 0:00:13]} 17. R4f2 {[%emt 0:01:39]} Bxe3 {[%emt 0:00:03]} 18. Qxe3 {[%emt 0:00:01]} Ne5 {[%emt 0:00:19]} 19. g5 {[%emt 0:00:32]} b5 {[%emt 0:00:28]} 20. Rf6 {[%emt 0:00:52]} gxf6 {[%emt 0:00:48]} 21. gxf6 {[%emt 0:00:05]} Kh8 {[%emt 0:00:01]} 22. Rf4 {[%emt 0:01:24]} Qc5 {[%emt 0:00:25]} 23. Qc1 {[%emt 0:00:31]} Rg8 {[%emt 0:00:11]} 24. Rh4 {[%emt 0:00:03]} Qf2 {[%emt 0:00:12]} 25. Rf4 {[%emt 0:00:37]} Qg2# {[%emt 0:00:03]} 0-1

[Event "European Online Club-ch-A 2021"]
[Site "Online"]
[Date "2021.03.27"]
[Round "6.4"]
[White "Emir, Doruk"]
[Black "Weissenhofer, Jonas"]
[Result "1-0"]
[ECO "A05"]
[WhiteElo "1852"]
[BlackElo "1719"]
[Annotator "NA"]
[PlyCount "55"]
[EventDate "2021.03.27"]
[EventType "team-tourn"]
[EventCountry "NET"]
[SourceTitle "playchess.com"]
[Source "ChessBase"]
[SourceQuality "1"]
[TimeControl "900+5"]

1. Nf3 {[%emt 0:00:00]} Nf6 {[%emt 0:00:04]} 2. g3 {[%emt 0:00:05]} g6 {[%emt 0:00:02]} 3. Bg2 {[%emt 0:00:02]} Bg7 {[%emt 0:00:01]} 4. O-O {[%emt 0:00:01]} O-O {[%emt 0:00:01]} 5. d3 {[%emt 0:00:01]} d6 {[%emt 0:00:08]} 6. e4 {[%emt 0:00:05]} c5 {[%emt 0:00:38]} 7. a4 {[%emt 0:00:48]} Nc6 {[%emt 0:00:19]} 8. Na3 {[%emt 0:00:06]} a6 {[%emt 0:00:41]} 9. c3 {[%emt 0:00:52]} Rb8 {[%emt 0:02:43]} 10. Qe2 {[%emt 0:00:17]} b5 {[%emt 0:01:42]} 11. axb5 {[%emt 0:00:46]} axb5 {[%emt 0:00:04]} 12. Bd2 {[%emt 0:00:04]} b4 {[%emt 0:03:04]} 13. Nc4 {[%emt 0:00:43]} Be6 {[%emt 0:01:04]} 14. e5 {[%emt 0:00:47]} Ne8 {[%emt 0:01:08]} 15. Ng5 {[%emt 0:01:01]} Nxe5 {[%emt 0:00:40]} 16. Nxe5 {[%emt 0:00:14]} dxe5 {[%emt 0:00:28]} 17. Nxe6 {[%emt 0:00:13]} fxe6 {[%emt 0:00:02]} 18. Ra7 {[%emt 0:00:29]} Nd6 {[%emt 0:01:08]} 19. Rfa1 {[%emt 0:00:23]} Nb5 {[%emt 0:01:14]} 20. R7a6 {[%emt 0:00:20]} Nd6 {[%emt 0:00:08]} 21. Bh3 {[%emt 0:00:07]} Qc8 {[%emt 0:00:30]} 22. Bg5 {[%emt 0:00:59]} Bf6 {[%emt 0:00:17]} 23. Qg4 {[%emt 0:00:26]} Kf7 {[%emt 0:00:35]} 24. Bh6 {[%emt 0:01:31]} Bg7 {[%emt 0:00:10]} 25. Rxd6 {[%emt 0:00:25]} exd6 {[%emt 0:00:06]} 26. Ra7+ {[%emt 0:00:08]} Rb7 {[%emt 0:00:08]} 27. Rxb7+ {[%emt 0:00:02]} Qxb7 {[%emt 0:00:01]} 28. Qxe6# {[%emt 0:00:03]} 1-0